bitfinex-derivatives/quotes_BTCF0:USTF0_20250626
["timestamp","ask_amount","ask_price","bid_price","bid_amount"]
[1750917077511,0.455,107650.0,107640.0,1.07596117]
[1750917077715,0.66469756,107650.0,107640.0,1.77740117]
[1750917080125,0.105,107650.0,107640.0,1.77740117]
[1750917088925,0.012,107650.0,107640.0,2.10740117]
[1750917089131,0.012,107650.0,107640.0,2.41169873]
[1750917089631,0.012,107650.0,107640.0,2.20200117]
[1750917090334,0.012,107650.0,107640.0,2.41169873]
[1750917090633,0.012,107650.0,107640.0,2.2948497]
[1750917091332,0.012,107650.0,107640.0,2.50454726]
[1750917091533,0.012,107650.0,107640.0,2.41169873]
[1750917091930,0.012,107650.0,107640.0,2.20200117]
[1750917095136,0.012,107650.0,107640.0,2.41169873]
[1750917095530,0.012,107650.0,107640.0,2.20200117]
[1750917096837,0.012,107650.0,107640.0,2.2948497]
[1750917097037,0.012,107650.0,107640.0,2.50454726]
[1750917097836,0.012,107650.0,107640.0,2.2948497]
[1750917098639,0.001,107660.0,107650.0,0.1857035]
[1750917098939,0.1086438,107670.0,107660.0,0.1856862]
[1750917099139,0.4786438,107670.0,107660.0,1.30608132]
[1750917099339,0.4786438,107670.0,107660.0,1.30682601]
[1750917099733,1.9786438,107670.0,107660.0,1.30682601]
[1750917101045,1.9866438,107670.0,107660.0,1.30782601]
[1750917102644,1.9786438,107670.0,107660.0,1.31082601]
[1750917103335,1.9806438,107670.0,107660.0,1.31082601]
[1750917104441,2.19034136,107670.0,107660.0,1.31082601]
[1750917104644,2.02034136,107670.0,107660.0,1.31082601]
[1750917105242,1.8106438,107670.0,107660.0,1.31082601]
[1750917105442,2.02034136,107670.0,107660.0,0.89143089]
[1750917105644,2.02034136,107670.0,107660.0,1.31082601]
[1750917108344,2.20601036,107670.0,107660.0,1.31082601]
[1750917108744,2.20601036,107670.0,107660.0,1.10112845]
[1750917110546,2.02034136,107670.0,107660.0,1.10112845]
[1750917111840,1.8106438,107670.0,107660.0,1.10112845]
[1750917112051,2.02034136,107670.0,107660.0,1.10112845]
[1750917112442,1.8106438,107670.0,107660.0,1.10112845]
[1750917112641,2.02034136,107670.0,107660.0,1.31082601]
[1750917113349,2.20601036,107670.0,107660.0,1.31082601]
[1750917113544,2.20601036,107670.0,107660.0,1.10112845]
[1750917114540,2.20601036,107670.0,107660.0,0.40012845]
[1750917114741,2.56681036,107670.0,107660.0,0.96832845]
[1750917117253,2.3571128,107670.0,107660.0,0.75863089]
[1750917117550,2.56681036,107670.0,107660.0,0.96832845]
[1750917120056,2.56681036,107670.0,107660.0,0.75863089]
[1750917120355,2.56681036,107670.0,107660.0,0.96832845]
[1750917121754,2.56681036,107670.0,107660.0,0.40012845]
[1750917121956,2.56681036,107670.0,107660.0,1.10068845]
[1750917123052,2.56681036,107670.0,107660.0,0.19043089]
[1750917123253,2.77650792,107670.0,107660.0,0.57282469]
[1750917123456,2.77650792,107670.0,107660.0,0.19043089]
[1750917123654,2.56681036,107670.0,107660.0,0.19043089]
[1750917124161,2.59157306,107670.0,107660.0,0.19043089]
[1750917125957,2.59157306,107670.0,107660.0,0.00474469]
[1750917126162,2.59157306,107670.0,107660.0,0.19043089]
[1750917127360,2.59157306,107670.0,107660.0,0.00474469]
[1750917130670,2.59157306,107670.0,107660.0,0.19043089]
[1750917131869,2.59157306,107670.0,107660.0,0.1909273]
[1750917136573,2.59157306,107670.0,107660.0,0.40062486]
[1750917140676,2.3818755,107670.0,107660.0,0.40062486]
[1750917140878,2.59157306,107670.0,107660.0,0.40062486]
[1750917142476,2.3818755,107670.0,107660.0,0.40062486]
[1750917142676,2.59157306,107670.0,107660.0,0.40062486]
[1750917154384,2.3818755,107670.0,107660.0,0.40062486]
[1750917154581,2.59157306,107670.0,107660.0,0.40062486]
[1750917155187,2.3818755,107670.0,107660.0,0.1909273]
[1750917155487,2.3818755,107670.0,107660.0,0.40062486]
[1750917155488,2.59157306,107670.0,107660.0,0.40062486]
[1750917155785,2.59157306,107670.0,107660.0,0.46682486]
[1750917156690,2.2888755,107670.0,107660.0,0.64352242]
[1750917156883,2.2641128,107670.0,107660.0,0.70442242]
[1750917158591,2.2641128,107670.0,107660.0,0.67352242]
[1750917158790,2.3583128,107670.0,107660.0,0.67352242]
[1750917159493,2.3583128,107670.0,107660.0,0.70632242]
[1750917159790,0.8583128,107670.0,107660.0,0.70632242]
[1750917160291,0.8271128,107670.0,107660.0,0.70632242]
[1750917161892,0.4663128,107670.0,107660.0,0.70632242]
[1750917162096,0.4663128,107670.0,107660.0,0.67352242]
[1750917162288,0.4977128,107670.0,107660.0,0.67352242]
[1750917162689,0.70741036,107670.0,107660.0,0.46382486]
[1750917162889,0.70741036,107670.0,107660.0,0.43382486]
[1750917163091,0.70741036,107670.0,107660.0,0.40062486]
[1750917165798,0.70741036,107670.0,107660.0,0.1909273]
[1750917166098,0.70741036,107670.0,107660.0,0.40062486]
[1750917171097,0.4977128,107670.0,107660.0,0.40062486]
[1750917171298,0.70741036,107670.0,107660.0,0.40062486]
[1750917171802,0.4977128,107670.0,107660.0,0.40062486]
[1750917171999,0.70741036,107670.0,107660.0,0.40062486]
[1750917172207,0.70741036,107670.0,107660.0,0.1909273]
[1750917172397,0.70741036,107670.0,107660.0,0.40062486]
[1750917173103,0.70741036,107670.0,107660.0,0.1909273]
[1750917173302,0.70741036,107670.0,107660.0,0.40062486]
[1750917175007,0.70741036,107670.0,107660.0,0.1909273]
[1750917175504,0.70741036,107670.0,107660.0,0.40062486]
[1750917175707,1.06821036,107670.0,107660.0,0.40062486]
[1750917176006,1.09300251,107670.0,107660.0,0.40062486]
[1750917176204,1.09300251,107670.0,107660.0,0.1909273]
[1750917177000,1.06821036,107670.0,107660.0,0.1909273]
[1750917177203,1.30270038,107670.0,107660.0,0.0052411]
[1750917177501,1.09300282,107670.0,107660.0,0.1909273]
[1750917178000,0.88330526,107670.0,107660.0,0.1909273]
[1750917178208,1.09300282,107670.0,107660.0,0.1909273]
[1750917178409,1.06821036,107670.0,107660.0,0.1909273]
[1750917178706,1.06821036,107670.0,107660.0,0.40062486]
[1750917179099,1.06821036,107670.0,107660.0,0.1909273]
[1750917180202,0.8585128,107670.0,107660.0,0.1909273]
[1750917180408,1.06821036,107670.0,107660.0,0.1909273]
[1750917181115,1.09300535,107670.0,107660.0,0.1909273]
[1750917182816,1.06821036,107670.0,107660.0,0.1909273]
[1750917183610,0.8585128,107670.0,107660.0,0.1909273]
[1750917183814,1.06821036,107670.0,107660.0,0.1909273]
[1750917195722,1.06821036,107670.0,107660.0,0.0052411]
[1750917196222,1.27790792,107670.0,107660.0,0.0052411]
[1750917201513,0.1857207,107640.0,107630.0,0.2785955]
[1750917201718,1.89443697,107640.0,107630.0,0.23030167]
[1750917201917,2.00574338,107640.0,107630.0,0.23030167]
[1750917203117,2.00674338,107640.0,107630.0,0.23630167]
[1750917203618,2.00674338,107640.0,107630.0,0.006]
[1750917203819,2.00674338,107640.0,107630.0,0.191738]
[1750917204123,2.00678338,107640.0,107630.0,0.191738]
[1750917204320,2.00678338,107640.0,107630.0,0.193738]
[1750917204926,2.00678338,107640.0,107630.0,0.191738]
[1750917205226,2.00678338,107640.0,107630.0,0.192738]
[1750917206327,2.0178119,107640.0,107630.0,0.192738]
[1750917206827,2.00678338,107640.0,107630.0,0.189738]
[1750917210326,1.43946338,107640.0,107630.0,0.189738]
[1750917210628,2.00678338,107640.0,107630.0,0.189738]
[1750917211332,1.64598338,107640.0,107630.0,0.189738]
[1750917211533,2.36758338,107640.0,107630.0,0.189738]
[1750917216535,2.36758338,107640.0,107630.0,0.004]
[1750917217428,2.57728094,107640.0,107630.0,0.004]
[1750917218630,2.36758338,107640.0,107630.0,0.004]
[1750917220938,2.36758338,107640.0,107630.0,0.189738]
[1750917221838,2.36758338,107640.0,107630.0,0.004]
[1750917224940,2.39226727,107640.0,107630.0,0.004]
[1750917227941,2.39230727,107640.0,107630.0,0.189738]
[1750917251350,1.82494727,107640.0,107630.0,0.189738]
[1750917251551,2.39226727,107640.0,107630.0,0.189738]
[1750917253658,1.97287215,107640.0,107630.0,0.189738]
[1750917253859,1.82494727,107640.0,107630.0,0.189738]
[1750917259262,1.40555215,107640.0,107630.0,0.39943556]
[1750917259458,1.28626826,107640.0,107630.0,0.39943556]
[1750917259762,2.78626826,107640.0,107630.0,0.49313556]
[1750917259963,2.99596582,107640.0,107630.0,0.49313556]
[1750917260365,2.99596582,107640.0,107630.0,0.283438]
[1750917260666,3.02906582,107640.0,107630.0,0.49313556]
[1750917262165,3.09246582,107640.0,107630.0,0.49313556]
[1750917269470,3.09246582,107640.0,107630.0,0.46073556]
[1750917269768,3.09246582,107640.0,107630.0,0.43063556]
[1750917270769,2.88276826,107640.0,107630.0,0.43063556]
[1750917271072,3.09246582,107640.0,107630.0,0.39943556]
[1750917275692,1.59246582,107640.0,107630.0,0.39943556]
[1750917276096,3.09246582,107640.0,107630.0,0.39943556]
[1750917277889,3.09246582,107640.0,107630.0,0.220638]
[1750917278090,3.09246582,107640.0,107630.0,0.43033556]
[1750917278594,3.09246582,107640.0,107630.0,0.99749556]
[1750917279191,2.69704756,107640.0,107630.0,0.99749556]
[1750917279488,1.97544756,107640.0,107630.0,0.99749556]
[1750917279692,2.18514512,107640.0,107630.0,0.99749556]
[1750917279984,1.87894756,107640.0,107630.0,0.99749556]
[1750917280190,1.87894756,107640.0,107630.0,1.05819556]
[1750917281095,0.37894756,107640.0,107630.0,1.05819556]
[1750917282593,0.37894756,107640.0,107630.0,1.41899556]
[1750917284193,0.62184512,107640.0,107630.0,1.35829556]
[1750917284388,0.68614512,107640.0,107630.0,1.35829556]
[1750917285898,0.37894756,107640.0,107630.0,1.35829556]
[1750917287200,0.37894756,107640.0,107630.0,0.79113556]
[1750917287399,0.44294756,107640.0,107630.0,1.49013556]
[1750917287597,0.47504756,107640.0,107630.0,1.49013556]
[1750917289098,0.47504756,107640.0,107630.0,1.280438]
[1750917289398,0.87046582,107640.0,107630.0,1.49013556]
[1750917292399,0.68474512,107640.0,107630.0,1.49013556]
[1750917293700,0.87046582,107640.0,107630.0,1.49013556]
[1750917294100,0.87046582,107640.0,107630.0,1.280438]
[1750917294302,0.87046582,107640.0,107630.0,1.45923556]
[1750917297703,0.68474512,107640.0,107630.0,1.45923556]
[1750917298497,0.87046582,107640.0,107630.0,1.45923556]
[1750917300505,1.23126582,107640.0,107630.0,1.09835556]
[1750917301807,1.44096338,107640.0,107630.0,0.888658]
[1750917302404,1.44096338,107640.0,107630.0,1.09835556]
[1750917302604,1.23126582,107640.0,107630.0,1.09835556]
[1750917307011,1.02156826,107640.0,107630.0,1.09835556]
[1750917307200,1.23126582,107640.0,107630.0,1.09835556]
[1750917308918,1.23126582,107640.0,107630.0,0.39943556]
[1750917309115,1.23126582,107640.0,107630.0,0.96639556]
[1750917311517,1.04554512,107640.0,107630.0,0.96639556]
[1750917312015,0.83584756,107640.0,107630.0,0.96639556]
[1750917312414,0.83584756,107640.0,107630.0,0.99779556]
[1750917313410,1.02156826,107640.0,107630.0,0.99779556]
[1750917313610,1.23126582,107640.0,107630.0,0.99779556]
[1750917315218,1.23126582,107640.0,107630.0,0.96639556]
[1750917323428,0.83584756,107640.0,107630.0,0.96639556]
[1750917323622,0.83584756,107640.0,107630.0,0.99789556]
[1750917324327,0.81914115,107640.0,107630.0,0.99789556]
[1750917324723,0.81914115,107640.0,107630.0,0.788198]
[1750917324924,0.81914115,107640.0,107630.0,0.99789556]
[1750917325129,0.42624115,107640.0,107630.0,1.35869556]
[1750917325317,0.42624115,107640.0,107630.0,1.42479556]
[1750917325623,0.36224115,107640.0,107630.0,1.63449312]
[1750917325813,0.36224115,107640.0,107630.0,1.42479556]
[1750917326924,0.36224115,107640.0,107630.0,1.46479556]
[1750917329722,0.36224115,107640.0,107630.0,1.55761404]
[1750917330225,0.36224115,107640.0,107630.0,1.46479556]
[1750917332828,0.39494115,107640.0,107630.0,1.46479556]
[1750917333633,0.60463871,107640.0,107630.0,1.46479556]
[1750917333924,0.60463871,107640.0,107630.0,1.39869556]
[1750917334126,0.66543871,107640.0,107630.0,1.39869556]
[1750917334330,0.85115941,107640.0,107630.0,1.39869556]
[1750917334925,0.45574115,107640.0,107630.0,1.39869556]
[1750917335429,0.45574115,107640.0,107630.0,1.46129556]
[1750917340136,0.36224115,107640.0,107630.0,1.46129556]
[1750917340736,0.39384115,107640.0,107630.0,1.46129556]
[1750917341331,0.39384115,107640.0,107630.0,1.55411404]
[1750917344740,0.39384115,107640.0,107630.0,1.34441648]
[1750917344941,0.39384115,107640.0,107630.0,1.55411404]
[1750917345141,0.42664115,107640.0,107630.0,1.55411404]
[1750917346152,0.39384115,107640.0,107630.0,1.55411404]
[1750917346346,0.39384115,107640.0,107630.0,1.7638116]
[1750917346642,0.39384115,107640.0,107630.0,1.55411404]
[1750917347443,0.36224115,107640.0,107630.0,1.7638116]
[1750917347741,0.36224115,107640.0,107630.0,1.55411404]
[1750917348744,0.36224115,107640.0,107630.0,1.62701508]
[1750917352846,0.39474115,107640.0,107630.0,1.62701508]
[1750917353236,0.42674115,107640.0,107630.0,1.62701508]
[1750917353747,0.46004115,107640.0,107630.0,1.62701508]
[1750917354149,0.46004115,107640.0,107630.0,1.59481508]
[1750917354450,0.46004115,107640.0,107630.0,1.56441508]
[1750917354747,0.66973871,107640.0,107630.0,1.66427508]
[1750917356251,0.85545941,107640.0,107630.0,1.66427508]
[1750917356451,0.85545941,107640.0,107630.0,1.59137404]
[1750917357652,0.85545941,107640.0,107630.0,1.23057404]
[1750917357852,0.85545941,107640.0,107630.0,1.19057404]
[1750917359654,0.85545941,107640.0,107630.0,0.49225404]
[1750917360046,0.85545941,107640.0,107630.0,1.19053404]
[1750917360247,0.85545941,107640.0,107630.0,1.09771556]
[1750917361157,0.85545941,107640.0,107630.0,0.321418]
[1750917361353,0.85545941,107640.0,107630.0,1.09771556]
[1750917365956,0.64576185,107640.0,107630.0,1.09771556]
[1750917366159,0.66973871,107640.0,107630.0,1.09771556]
[1750917367461,0.46004115,107640.0,107630.0,1.45851556]
[1750917368351,0.46004115,107640.0,107630.0,1.09771556]
[1750917368752,0.66973871,107640.0,107630.0,1.09771556]
[1750917369351,0.66973871,107640.0,107630.0,0.39943556]
[1750917369553,0.66973871,107640.0,107630.0,1.09751556]
[1750917371864,0.85545941,107640.0,107630.0,0.39943556]
[1750917372064,0.85545941,107640.0,107630.0,0.96595556]
[1750917372668,1.42595697,107640.0,107630.0,0.57048]
[1750917372962,1.63565453,107640.0,107630.0,0.004]
[1750917373156,1.42595697,107640.0,107630.0,0.004]
[1750917373556,1.42595697,107640.0,107630.0,0.189738]
[1750917376468,1.28635045,107640.0,107630.0,0.004]
[1750917377865,1.28635045,107640.0,107630.0,0.189738]
[1750917378666,1.28635045,107640.0,107630.0,0.004]
[1750917381070,1.00656185,107640.0,107630.0,0.189738]
[1750917381263,1.28635045,107640.0,107630.0,0.189738]
[1750917385370,1.28635045,107640.0,107630.0,0.004]
[1750917386272,1.28635045,107640.0,107630.0,0.189738]
[1750917389472,1.85283045,107640.0,107630.0,0.189738]
[1750917392775,1.85283045,107640.0,107630.0,0.004]
[1750917393876,1.85283045,107640.0,107630.0,0.189738]
[1750917394679,1.28635045,107640.0,107630.0,0.189738]
[1750917394872,1.85279045,107640.0,107630.0,0.189738]
[1750917396278,1.99263371,107640.0,107630.0,0.189738]
[1750917400482,2.0171449,107640.0,107630.0,0.189738]
[1750917403673,1.4507049,107640.0,107630.0,0.189738]
[1750917403977,2.0171049,107640.0,107630.0,0.189738]
[1750917405977,1.6563049,107640.0,107630.0,0.189738]
[1750917406187,2.0171049,107640.0,107630.0,0.189738]
[1750917406483,2.0171049,107640.0,107630.0,0.39955393]
[1750917406681,2.0171049,107640.0,107630.0,0.43025393]
[1750917406881,2.0171049,107640.0,107630.0,0.49275393]
[1750917408384,1.4507049,107640.0,107630.0,0.49275393]
[1750917409784,1.4507049,107640.0,107630.0,0.282938]
[1750917411285,1.4507049,107640.0,107630.0,0.252538]
[1750917413690,1.4507049,107640.0,107630.0,0.220438]
[1750917419992,1.24088897,107640.0,107630.0,0.220438]
[1750917420196,1.4507049,107640.0,107630.0,0.189738]
[1750917421692,1.20758897,107640.0,107630.0,0.39955393]
[1750917421995,0.54796185,107640.0,107630.0,0.82395393]
[1750917422191,0.54796185,107640.0,107630.0,0.85525393]
[1750917422696,0.75777778,107640.0,107630.0,0.85525393]
[1750917429613,0.36224115,107640.0,107630.0,0.85525393]
[1750917429809,0.36224115,107640.0,107630.0,1.06506986]
[1750917430022,0.36224115,107640.0,107630.0,1.15788834]
[1750917430612,0.36224115,107640.0,107630.0,0.94807241]
[1750917431308,0.36224115,107640.0,107630.0,1.39506986]
[1750917431514,0.15224115,107640.0,107630.0,1.48788834]
[1750917432913,0.15224115,107640.0,107630.0,1.56141147]
[1750917433409,0.00224115,107640.0,107630.0,1.56141147]
[1750917433812,0.00224115,107640.0,107630.0,1.74722747]
[1750917434715,0.00224115,107640.0,107630.0,1.56141147]
[1750917436319,0.00224115,107640.0,107630.0,1.74722747]
[1750917437209,0.00224115,107640.0,107630.0,1.65440899]
[1750917437609,0.00224115,107640.0,107630.0,1.74722747]
[1750917437905,0.00224115,107640.0,107630.0,1.99722747]
[1750917439311,0.00224115,107640.0,107630.0,1.90440899]
[1750917440323,0.00224115,107640.0,107630.0,1.99698929]
[1750917440616,0.00224115,107640.0,107630.0,2.28828929]
[1750917441016,0.00224115,107640.0,107630.0,2.19570899]
[1750917444219,0.00224115,107640.0,107630.0,1.94570899]
[1750917447119,0.03304115,107640.0,107630.0,1.94570899]
[1750917447714,0.03304115,107640.0,107630.0,1.75989299]
[1750917449118,0.00224115,107640.0,107630.0,1.75989299]
[1750917453622,0.00224115,107640.0,107630.0,1.85247329]
[1750917455225,0.00224115,107640.0,107630.0,2.03828929]
[1750917456723,0.00224115,107640.0,107630.0,1.85247329]
[1750917458725,0.03294115,107640.0,107630.0,1.75989299]
[1750917459027,0.03294115,107640.0,107630.0,1.88983887]
[1750917459225,0.06304115,107640.0,107630.0,1.88983887]
[1750917464427,0.06304115,107640.0,107630.0,1.85673887]
[1750917464623,0.06304115,107640.0,107630.0,1.82543887]
[1750917470533,0.06304115,107640.0,107630.0,1.69549299]
[1750917472635,0.06304115,107640.0,107630.0,1.82553178]
[1750917473840,0.06304115,107640.0,107630.0,1.69549299]
[1750917474941,0.06304115,107640.0,107630.0,2.05629299]
[1750917475243,0.00224115,107640.0,107630.0,2.05629299]
[1750917475540,0.00224115,107640.0,107630.0,2.12049299]
[1750917475741,0.00224115,107640.0,107630.0,2.81753299]
[1750917477449,0.00224115,107640.0,107630.0,2.91041847]
[1750917478942,0.00224115,107640.0,107630.0,2.49078661]
[1750917479143,0.03414115,107640.0,107630.0,2.91041847]
[1750917479342,0.08124115,107640.0,107630.0,2.91041847]
[1750917481434,0.08124115,107640.0,107630.0,2.49078661]
[1750917481640,0.14654115,107640.0,107630.0,2.91041847]
[1750917484651,0.14654115,107640.0,107630.0,2.49078661]
[1750917484842,0.14654115,107640.0,107630.0,2.91041847]
[1750917490952,0.14654115,107640.0,107630.0,3.71313847]
[1750917492951,0.08124115,107640.0,107630.0,3.71313847]
[1750917496052,0.08124115,107640.0,107630.0,3.75029178]
[1750917496451,0.11414115,107640.0,107630.0,3.75029178]
[1750917496652,0.14594115,107640.0,107630.0,3.75029178]
[1750917497055,0.14594115,107640.0,107630.0,3.68609178]
[1750917497554,0.14594115,107640.0,107630.0,3.55605299]
[1750917498153,0.14594115,107640.0,107630.0,3.68609178]
[1750917498853,0.14594115,107640.0,107630.0,3.65539178]
[1750917500855,0.14594115,107640.0,107630.0,3.23575992]
[1750917501152,0.14594115,107640.0,107630.0,3.65539178]
[1750917501359,0.14594115,107640.0,107630.0,3.52535299]
[1750917501741,0.14594115,107640.0,107630.0,3.65539178]
[1750917501947,0.14594115,107640.0,107630.0,2.86775574]
[1750917502150,0.14594115,107640.0,107630.0,2.73771695]
[1750917502553,0.14594115,107640.0,107630.0,2.86775574]
[1750917509055,1.5,107670.0,107660.0,0.1856862]
[1750917509261,2.0993559,107670.0,107660.0,1.10889506]
[1750917509952,0.60121593,107670.0,107660.0,1.10889506]
[1750917510158,0.3914,107670.0,107660.0,2.02951099]
[1750917510359,0.4572,107670.0,107660.0,2.02951099]
[1750917510560,0.4572,107670.0,107660.0,2.03915684]
[1750917510856,0.4572,107670.0,107660.0,2.04015684]
[1750917510857,0.4612,107670.0,107660.0,2.04015684]
[1750917511462,0.2472,107670.0,107660.0,2.03915684]
[1750917511859,0.2512,107670.0,107660.0,2.03915684]
[1750917512462,0.2482,107670.0,107660.0,2.03915684]
[1750917516265,0.2482,107670.0,107660.0,1.68915684]
[1750917526775,0.27280577,107670.0,107660.0,0.57276498]
[1750917527175,0.27280577,107670.0,107660.0,1.68887684]
[1750917530276,0.27280577,107670.0,107660.0,1.67348506]
[1750917533079,0.27280577,107670.0,107660.0,1.10804506]
[1750917533278,0.27280577,107670.0,107660.0,1.67344506]
[1750917533679,0.4826217,107670.0,107660.0,1.67344506]
[1750917534980,0.4826217,107670.0,107660.0,1.2538132]
[1750917535182,0.4826217,107670.0,107660.0,1.67344506]
[1750917536680,0.45801593,107670.0,107660.0,1.67344506]
[1750917537376,0.2482,107670.0,107660.0,1.67344506]
[1750917537582,0.45801593,107670.0,107660.0,1.67344506]
[1750917538286,0.2482,107670.0,107660.0,1.67344506]
[1750917540388,0.0982,107670.0,107660.0,1.67344506]
[1750917540574,0.643869,107670.0,107660.0,0.97700506]
[1750917540778,0.87832637,107670.0,107660.0,0.40638913]
[1750917541085,0.87832637,107670.0,107660.0,1.10278913]
[1750917542490,0.85368493,107670.0,107660.0,1.10278913]
[1750917550199,0.85368493,107670.0,107660.0,1.10270913]
[1750917564612,0.85368493,107670.0,107660.0,0.8928932]
[1750917564913,0.85368493,107670.0,107660.0,1.10270913]
[1750917568215,0.66801593,107670.0,107660.0,1.10270913]
[1750917568813,0.66801593,107670.0,107660.0,1.31252506]
[1750917570512,0.4582,107670.0,107660.0,1.31252506]
[1750917570712,0.361,107670.0,107660.0,1.67332506]
[1750917570909,0.361,107670.0,107660.0,1.76862506]
[1750917574812,0.361,107670.0,107660.0,1.86151018]
[1750917577207,0.361,107670.0,107660.0,2.23151018]
[1750917577407,0.001,107670.0,107660.0,2.23151018]
[1750917581819,0.001,107670.0,107660.0,2.13862506]
[1750917582526,0.001,107670.0,107660.0,2.2314038]
[1750917583116,0.001,107670.0,107660.0,2.26866385]
[1750917583416,0.0967,107690.0,107680.0,0.1856518]
[1750917583619,0.4367,107690.0,107680.0,1.09138773]
[1750917583922,1.9367,107690.0,107680.0,1.09213242]
[1750917584123,0.4367,107690.0,107680.0,1.09213242]
[1750917584522,1.9367,107690.0,107680.0,1.30194835]
[1750917584714,1.9407,107690.0,107680.0,1.30194835]
[1750917588230,1.9307,107690.0,107680.0,1.30194835]
[1750917588423,1.9367,107690.0,107680.0,1.30294835]
[1750917589120,1.9367,107690.0,107680.0,1.66374835]
[1750917589625,0.405,107690.0,107680.0,1.66374835]
[1750917589827,0.405,107690.0,107680.0,1.75744835]
[1750917591531,0.401,107690.0,107680.0,1.75744835]
[1750917591726,0.402,107690.0,107680.0,1.75744835]
[1750917592132,0.398,107690.0,107680.0,1.75644835]
[1750917592324,0.398,107690.0,107680.0,2.10644835]
[1750917592524,0.398,107690.0,107680.0,1.69394835]
[1750917592723,0.198,107690.0,107680.0,1.69394835]
[1750917592926,0.198,107690.0,107680.0,2.09694835]
[1750917593720,0.198,107690.0,107680.0,1.75694835]
[1750917593922,0.198,107690.0,107680.0,1.69394835]
[1750917594124,0.2312,107690.0,107680.0,1.69394835]
[1750917596435,0.2312,107690.0,107680.0,1.71394835]
[1750917599344,0.2312,107690.0,107680.0,1.29431649]
[1750917599543,0.2312,107690.0,107680.0,1.71394835]
[1750917600443,0.2312,107690.0,107680.0,1.66274835]
[1750917604148,0.2312,107690.0,107680.0,0.96682835]
[1750917604345,0.62665043,107690.0,107680.0,0.18639649]
[1750917604643,0.44101593,107690.0,107680.0,1.09173242]
[1750917604945,1.43726636,107690.0,107680.0,0.69626469]
[1750917605149,1.22745043,107690.0,107680.0,0.88191649]
[1750917605345,2.08281029,107690.0,107680.0,0.00074469]
[1750917605549,0.185669,107670.0,107660.0,0.08063525]
[1750917605841,0.1857207,107640.0,107630.0,0.71291413]
[1750917606043,0.96659371,107640.0,107630.0,0.3502541]
[1750917606249,0.96659371,107640.0,107630.0,0.2321576]
[1750917606448,1.35269518,107640.0,107630.0,0.7968776]
[1750917607348,1.32739371,107640.0,107630.0,0.2321576]
[1750917607648,1.32739371,107640.0,107630.0,0.7968776]
[1750917608252,1.18751632,107640.0,107630.0,0.7968776]
[1750917608645,1.24991632,107640.0,107630.0,0.7968776]
[1750917608847,1.28011632,107640.0,107630.0,0.7968776]
[1750917609144,1.28011632,107640.0,107630.0,0.7978776]
[1750917610649,1.00036185,107640.0,107630.0,0.80740855]
[1750917611442,1.00136185,107640.0,107630.0,0.80940855]
[1750917614553,1.00136185,107640.0,107630.0,0.7998776]
[1750917619757,1.00136185,107640.0,107630.0,0.80941107]
[1750917624358,1.00136185,107640.0,107630.0,0.81941107]
[1750917626769,1.00136185,107640.0,107630.0,0.8098776]
[1750917627763,1.28111632,107640.0,107630.0,0.8098776]
[1750917628557,1.28111632,107640.0,107630.0,0.753618]
[1750917631768,1.30641292,107640.0,107630.0,0.753618]
[1750917634265,1.30641292,107640.0,107630.0,0.003]
[1750917634465,1.30641292,107640.0,107630.0,0.56788]
[1750917636169,1.30641292,107640.0,107630.0,0.003]
[1750917642271,1.02665845,107640.0,107630.0,0.003]
[1750917642468,1.30641292,107640.0,107630.0,0.003]
[1750917642666,1.30641292,107640.0,107630.0,0.188738]
[1750917643674,1.02665845,107640.0,107630.0,0.188738]
[1750917643870,0.93405845,107640.0,107630.0,0.219038]
[1750917644174,0.93405845,107640.0,107630.0,0.281738]
[1750917644765,1.21381292,107640.0,107630.0,0.281738]
[1750917649780,0.93405845,107640.0,107630.0,0.281738]
[1750917649981,1.21381292,107640.0,107630.0,0.281738]
[1750917651781,0.93405845,107640.0,107630.0,0.281738]
[1750917652082,1.21381292,107640.0,107630.0,0.281738]
[1750917652279,1.35363243,107640.0,107630.0,0.281738]
[1750917652680,1.14384544,107640.0,107630.0,0.281738]
[1750917654785,1.35363243,107640.0,107630.0,0.281738]
[1750917655983,1.14384544,107640.0,107630.0,0.281738]
[1750917656285,0.95812474,107640.0,107630.0,0.49152499]
[1750917657384,0.93282814,107640.0,107630.0,0.49152499]
[1750917657884,1.11854884,107640.0,107630.0,0.49152499]
[1750917658183,0.82854884,107640.0,107630.0,0.49152499]
[1750917658379,0.46774884,107640.0,107630.0,0.49152499]
[1750917660285,0.28202814,107640.0,107630.0,0.49152499]
[1750917660690,0.46774884,107640.0,107630.0,0.49152499]
[1750917661384,0.46774884,107640.0,107630.0,0.281738]
[1750917666079,0.07224115,107640.0,107630.0,0.281738]
[1750917666484,0.28202814,107640.0,107630.0,0.49152499]
[1750917666983,0.07224115,107640.0,107630.0,0.49152499]
[1750917667189,0.07224115,107640.0,107630.0,1.40211198]
[1750917667485,0.07224115,107640.0,107630.0,1.49425361]
[1750917667995,0.07224115,107640.0,107630.0,1.68006961]
[1750917668289,0.5464841,107670.0,107660.0,0.1856862]
[1750917668491,0.5464841,107670.0,107660.0,0.75164735]
[1750917668492,1.14415002,107670.0,107660.0,0.75164735]
[1750917668687,1.17425002,107670.0,107660.0,0.75164735]
[1750917668888,1.20465002,107670.0,107660.0,0.75164735]
[1750917669193,1.20465002,107670.0,107660.0,0.75160735]
[1750917669688,1.20965002,107670.0,107660.0,0.75260735]
[1750917669886,1.21265002,107670.0,107660.0,0.75260735]
[1750917670691,1.21065002,107670.0,107660.0,0.75260735]
[1750917671092,1.21065002,107670.0,107660.0,0.18792735]
[1750917671792,1.20565002,107670.0,107660.0,0.18792735]
[1750917676306,1.20565002,107670.0,107660.0,0.00224115]
[1750917676490,1.20565002,107670.0,107660.0,0.18792735]
[1750917679997,0.92612407,107670.0,107660.0,0.18792735]
[1750917680189,0.92612407,107670.0,107660.0,0.22032735]
[1750917680190,1.20565002,107670.0,107660.0,0.22032735]
[1750917682799,1.20565002,107670.0,107660.0,0.18792735]
[1750917682995,0.92612407,107670.0,107660.0,0.18792735]
[1750917683200,1.20565002,107670.0,107660.0,0.18792735]
[1750917686798,0.92612407,107670.0,107660.0,0.21962735]
[1750917687500,0.897569,107670.0,107660.0,0.4991533]
[1750917687695,0.897569,107670.0,107660.0,0.25192735]
[1750917688703,0.3511,107670.0,107660.0,0.61272735]
[1750917688905,0.321,107670.0,107660.0,0.8922533]
[1750917690199,0.321,107670.0,107660.0,1.03197805]
[1750917690699,0.321,107670.0,107660.0,0.8223527]
[1750917690905,0.53062535,107670.0,107660.0,0.8223527]
[1750917692201,0.321,107670.0,107660.0,0.89223853]
[1750917694210,0.321,107670.0,107660.0,0.61272735]
[1750917697906,0.506669,107670.0,107660.0,0.54872735]
[1750917698108,0.8750136,107670.0,107660.0,1.24512735]
[1750917698509,0.8750136,107670.0,107660.0,1.27542735]
[1750917700707,0.56300242,107670.0,107660.0,1.27542735]
[1750917700916,0.37733342,107670.0,107660.0,1.58583853]